Workbook

Sheet LLCR Theory
B3: LLCR Formulas
B5: LLCR = PV(CF)/PV(Net Debt) ; DSCR with NPV's around it
B7: LLCR = PV(CF)/(Debt - DSRA)
B9: LLCR is a break even formula
B10: LLCR measures pct reduction in cash flow before cannot repay debt over loan life
B12: Break even percent reduction in CFADS = (LLCR-1)/LLCR
B14: Problems in what discount rate gives the correct answer -- in terms of the break-even theory
B16: Rolling LLCR
B17: PV of CFADS = (Sumproduct of CF/Interest Rate Index) * Last Period Interest Rate Index

Sheet LLCR Example with Sumproduct
J2: Create an Interest Rate Index
B3: Period | D3: 1 | E3: 4 | F3: 6 | G3: 9 | H3: 12 | J3: LLCR can be computed with Sumproduct
B4: Rate | D4: 0.04 | E4: =D4+0.25% -> 0.0425 | F4: =E4+0.25% -> 0.045 | G4: 0.0475 | H4: 0.05
J5: Multuiply by prior value or Interest Rate Index
B6: Loan | D6: 1000
B7: Tenor | D7: 20
D9: 1 | E9: 2 | F9: 3 | G9: 4 | H9: 5 | I9: 6 | J9: 7 | K9: 8 | L9: 9 | M9: 10 | N9: 11 | O9: 12 | P9: 13 | Q9: 14 | R9: 15 | S9: 16 | T9: 17 | U9: 18 | V9: 19 | W9: 20
B11: Base CF | D11: 200 | E11: =D11*1.01 -> 202 | F11: 204.02 | G11: 206.0602 | H11: 208.120802 | I11: 210.20201 | J11: 212.3040301 | K11: 214.4270704 | L11: 216.5713411 | M11: 218.7370545 | N11: 220.9244251 | O11: 223.1336693 | P11: 225.365006 | Q11: 227.6186561 | R11: 229.8948426 | S11: 232.1937911 | T11: 234.515729 | U11: 236.8608863 | V11: 239.2294951 | W11: 241.6217901
B12: Pct Reduction | C12: 1 | D12: =D11*$C$12 -> 200 | E12: 202 | F12: 204.02 | G12: 206.0602 | H12: 208.120802 | I12: 210.20201 | J12: 212.3040301 | K12: 214.4270704 | L12: 216.5713411 | M12: 218.7370545 | N12: 220.9244251 | O12: 223.1336693 | P12: 225.365006 | Q12: 227.6186561 | R12: 229.8948426 | S12: 232.1937911 | T12: 234.515729 | U12: 236.8608863 | V12: 239.2294951 | W12: 241.6217901
B13: Cash Flow Realised | D13: =D12 -> 200 | E13: =E12 -> 202 | F13: 204.02 | G13: 206.0602 | H13: 208.120802 | I13: 210.20201 | J13: 212.3040301 | K13: 214.4270704 | L13: 216.5713411 | M13: 218.7370545 | N13: 220.9244251 | O13: 223.1336693 | P13: 225.365006 | Q13: 227.6186561 | R13: 229.8948426 | S13: 232.1937911 | T13: 234.515729 | U13: 236.8608863 | V13: 239.2294951 | W13: 241.6217901
B15: Target DS | C15: 1.5 | D15: =D13/$C$15 -> 133.3333333 | E15: 134.6666667 | F15: 136.0133333 | G15: 137.3734667 | H15: 138.7472013 | I15: 140.1346733 | J15: 141.5360201 | K15: 142.9513803 | L15: 144.3808941 | M15: 145.824703 | N15: 147.2829501 | O15: 148.7557796 | P15: 150.2433374 | Q15: 151.7457707 | R15: 153.2632284 | S15: 154.7958607 | T15: 156.3438193 | U15: 157.9072575 | V15: 159.4863301 | W15: 161.0811934
B17: Interest Rate | D17: =LOOKUP(D9,3:3,4:4) -> 0.04 | E17: 0.04 | F17: 0.04 | G17: 0.0425 | H17: 0.0425 | I17: 0.045 | J17: 0.045 | K17: 0.045 | L17: 0.0475 | M17: 0.0475 | N17: 0.0475 | O17: 0.05 | P17: 0.05 | Q17: 0.05 | R17: 0.05 | S17: 0.05 | T17: 0.05 | U17: 0.05 | V17: 0.05 | W17: 0.05
B18: Interest Rate Index | C18: 1 | D18: =C18*(1+D17) -> 1.04 | E18: 1.0816 | F18: 1.124864 | G18: 1.17267072 | H18: 1.222509226 | I18: 1.277522141 | J18: 1.335010637 | K18: 1.395086116 | L18: 1.461352706 | M18: 1.53076696 | N18: 1.60347839 | O18: 1.68365231 | P18: 1.767834925 | Q18: 1.856226672 | R18: 1.949038005 | S18: 2.046489906 | T18: 2.148814401 | U18: 2.256255121 | V18: 2.369067877 | W18: 2.487521271
B20: NPV of DS | C20: =SUMPRODUCT(D15:W15/D18:W18) -> 1892.545565
B23: Opening Balance | D23: =C25 -> 1892.545565 | E23: =D25 -> 1834.914054 | F23: 1773.643949 | G23: 1708.576374 | H23: 1643.817403 | I23: 1574.932442 | J23: 1505.669728 | K23: 1431.888846 | L23: 1353.372464 | M23: 1273.276762 | N23: 1187.932705 | O23: 1097.076558 | P23: 1003.174606 | Q23: 903.0899994 | R23: 796.4987287 | S23: 683.0604367 | T23: 562.4175978 | U23: 434.1946584 | V23: 297.9971338 | W23: 153.4106604
B24: Repayment | D24: =D15-D26 -> 57.63151075 | E24: =E15-E26 -> 61.27010451 | F24: 65.06757536 | G24: 64.75897077 | H24: 68.88496169 | I24: 69.26271347 | J24: 73.78088231 | K24: 78.51638222 | L24: 80.09570206 | M24: 85.34405685 | N24: 90.85614658 | O24: 93.90195165 | P24: 100.084607 | Q24: 106.5912708 | R24: 113.438292 | S24: 120.6428389 | T24: 128.2229394 | U24: 136.1975246 | V24: 144.5864734 | W24: 153.4106604
B25: Closing Balance | C25: =C20 -> 1892.545565 | D25: =D23-D24 -> 1834.914054 | E25: =E23-E24 -> 1773.643949 | F25: 1708.576374 | G25: 1643.817403 | H25: 1574.932442 | I25: 1505.669728 | J25: 1431.888846 | K25: 1353.372464 | L25: 1273.276762 | M25: 1187.932705 | N25: 1097.076558 | O25: 1003.174606 | P25: 903.0899994 | Q25: 796.4987287 | R25: 683.0604367 | S25: 562.4175978 | T25: 434.1946584 | U25: 297.9971338 | V25: 153.4106604 | W25: 0
B26: Interest | D26: =D23*D17 -> 75.70182259 | E26: =E23*E17 -> 73.39656216 | F26: 70.94575798 | G26: 72.6144959 | H26: 69.86223964 | I26: 70.87195987 | J26: 67.75513777 | K26: 64.43499806 | L26: 64.28519202 | M26: 60.48064617 | N26: 56.42680347 | O26: 54.85382791 | P26: 50.15873032 | Q26: 45.15449997 | R26: 39.82493643 | S26: 34.15302183 | T26: 28.12087989 | U26: 21.70973292 | V26: 14.89985669 | W26: 7.670533019
B28: NPV of Cash Flow with Sumproduct | C28: =SUMPRODUCT(D13:W13/D18:W18) -> 2838.818347
A29: Wrong | B29: NPV with discount factor
B30: Discount factor | D30: =1/(1+D17)^D9 -> 0.9615384615 | E30: =1/(1+E17)^E9 -> 0.924556213 | F30: 0.8889963587 | G30: 0.8466340781 | H30: 0.8121190198 | I30: 0.7678957383 | J30: 0.7348284577 | K30: 0.703185127 | L30: 0.6585878514 | M30: 0.6287234858 | N30: 0.6002133516 | O30: 0.5568374182 | P30: 0.5303213506 | Q30: 0.505067953 | R30: 0.4810170981 | S30: 0.458111522 | T30: 0.4362966876 | U30: 0.4155206549 | V30: 0.395733957 | W30: 0.3768894829
B31: Sumproduct | C31: =SUMPRODUCT(D30:W30,D13:W13) -> 2747.034811
B32: NPV of DS | C32: =SUMPRODUCT(D15:W15/D18:W18) -> 1892.545565
B34: Rolling Forward DS | D34: =IFERROR(SUMPRODUCT(E13:$W13/E18:$W18)*D18,0) -> 2752.371081 | E34: =IFERROR(SUMPRODUCT(F13:$W13/F18:$W18)*E18,0) -> 2660.465924 | F34: =IFERROR(SUMPRODUCT(G13:$W13/G18:$W18)*F18,0) -> 2562.864561 | G34: =IFERROR(SUMPRODUCT(H13:$W13/H18:$W18)*G18,0) -> 2465.726105 | H34: =IFERROR(SUMPRODUCT(I13:$W13/I18:$W18)*H18,0) -> 2362.398662 | I34: =IFERROR(SUMPRODUCT(J13:$W13/J18:$W18)*I18,0) -> 2258.504592 | J34: =IFERROR(SUMPRODUCT(K13:$W13/K18:$W18)*J18,0) -> 2147.833269 | K34: =IFERROR(SUMPRODUCT(L13:$W13/L18:$W18)*K18,0) -> 2030.058695 | L34: =IFERROR(SUMPRODUCT(M13:$W13/M18:$W18)*L18,0) -> 1909.915142 | M34: =IFERROR(SUMPRODUCT(N13:$W13/N18:$W18)*M18,0) -> 1781.899057 | N34: =IFERROR(SUMPRODUCT(O13:$W13/O18:$W18)*N18,0) -> 1645.614837 | O34: =IFERROR(SUMPRODUCT(P13:$W13/P18:$W18)*O18,0) -> 1504.76191 | P34: =IFERROR(SUMPRODUCT(Q13:$W13/Q18:$W18)*P18,0) -> 1354.634999 | Q34: =IFERROR(SUMPRODUCT(R13:$W13/R18:$W18)*Q18,0) -> 1194.748093 | R34: =IFERROR(SUMPRODUCT(S13:$W13/S18:$W18)*R18,0) -> 1024.590655 | S34: =IFERROR(SUMPRODUCT(T13:$W13/T18:$W18)*S18,0) -> 843.6263967 | T34: =IFERROR(SUMPRODUCT(U13:$W13/U18:$W18)*T18,0) -> 651.2919876 | U34: =IFERROR(SUMPRODUCT(V13:$W13/V18:$W18)*U18,0) -> 446.9957007 | V34: =IFERROR(SUMPRODUCT(W13:$W13/W18:$W18)*V18,0) -> 230.1159906 | W34: =IFERROR(SUMPRODUCT($W13:X13/$W18:X18)*W18,0) -> 0
B35: Rolling Forward Cash Flow | D35: =IFERROR(SUMPRODUCT(E13:$W13/E18:$W18)*D18,0) -> 2752.371081 | E35: =IFERROR(SUMPRODUCT(F13:$W13/F18:$W18)*E18,0) -> 2660.465924 | F35: =IFERROR(SUMPRODUCT(G13:$W13/G18:$W18)*F18,0) -> 2562.864561 | G35: =IFERROR(SUMPRODUCT(H13:$W13/H18:$W18)*G18,0) -> 2465.726105 | H35: =IFERROR(SUMPRODUCT(I13:$W13/I18:$W18)*H18,0) -> 2362.398662 | I35: =IFERROR(SUMPRODUCT(J13:$W13/J18:$W18)*I18,0) -> 2258.504592 | J35: =IFERROR(SUMPRODUCT(K13:$W13/K18:$W18)*J18,0) -> 2147.833269 | K35: =IFERROR(SUMPRODUCT(L13:$W13/L18:$W18)*K18,0) -> 2030.058695 | L35: =IFERROR(SUMPRODUCT(M13:$W13/M18:$W18)*L18,0) -> 1909.915142 | M35: =IFERROR(SUMPRODUCT(N13:$W13/N18:$W18)*M18,0) -> 1781.899057 | N35: =IFERROR(SUMPRODUCT(O13:$W13/O18:$W18)*N18,0) -> 1645.614837 | O35: =IFERROR(SUMPRODUCT(P13:$W13/P18:$W18)*O18,0) -> 1504.76191 | P35: =IFERROR(SUMPRODUCT(Q13:$W13/Q18:$W18)*P18,0) -> 1354.634999 | Q35: =IFERROR(SUMPRODUCT(R13:$W13/R18:$W18)*Q18,0) -> 1194.748093 | R35: =IFERROR(SUMPRODUCT(S13:$W13/S18:$W18)*R18,0) -> 1024.590655 | S35: =IFERROR(SUMPRODUCT(T13:$W13/T18:$W18)*S18,0) -> 843.6263967 | T35: =IFERROR(SUMPRODUCT(U13:$W13/U18:$W18)*T18,0) -> 651.2919876 | U35: =IFERROR(SUMPRODUCT(V13:$W13/V18:$W18)*U18,0) -> 446.9957007 | V35: =IFERROR(SUMPRODUCT(W13:$W13/W18:$W18)*V18,0) -> 230.1159906 | W35: =IFERROR(SUMPRODUCT($W13:X13/$W18:X18)*W18,0) -> 0
B37: Rolling LLCR | D37: =IF(D25,D35/D25) -> 1.5 | E37: =IF(E25,E35/E25) -> 1.5 | F37: 1.5 | G37: 1.5 | H37: 1.5 | I37: 1.5 | J37: 1.5 | K37: 1.5 | L37: 1.5 | M37: 1.5 | N37: 1.5 | O37: 1.5 | P37: 1.5 | Q37: 1.5 | R37: 1.5 | S37: 1.5 | T37: 1.5 | U37: 1.5 | V37: 1.5 | W37: FALSE
A40: Cash Flow Sweep Proof of LLCR Formula
B41: Cash Flow | C41: =(D37-1)/D37 -> 0.3333333333 | D41: =D13*(1-$C$41) -> 133.3333333 | E41: =E13*(1-$C$41) -> 134.6666667 | F41: 136.0133333 | G41: 137.3734667 | H41: 138.7472013 | I41: 140.1346733 | J41: 141.5360201 | K41: 142.9513803 | L41: 144.3808941 | M41: 145.824703 | N41: 147.2829501 | O41: 148.7557796 | P41: 150.2433374 | Q41: 151.7457707 | R41: 153.2632284 | S41: 154.7958607 | T41: 156.3438193 | U41: 157.9072575 | V41: 159.4863301 | W41: 161.0811934
B43: Debt Balance
B44: Opening Balance | D44: =C46 -> 1892.545565 | E44: =D46 -> 1834.914054 | F44: 1773.643949 | G44: 1708.576374 | H44: 1643.817403 | I44: 1574.932442 | J44: 1505.669728 | K44: 1431.888846 | L44: 1353.372464 | M44: 1273.276762 | N44: 1187.932705 | O44: 1097.076558 | P44: 1003.174606 | Q44: 903.0899994 | R44: 796.4987287 | S44: 683.0604367 | T44: 562.4175978 | U44: 434.1946584 | V44: 297.9971338 | W44: 153.4106604
B45: Less: Cash Sweep | D45: =MIN(D44,D50) -> 57.63151075 | E45: =MIN(E44,E50) -> 61.27010451 | F45: 65.06757536 | G45: 64.75897077 | H45: 68.88496169 | I45: 69.26271347 | J45: 73.78088231 | K45: 78.51638222 | L45: 80.09570206 | M45: 85.34405685 | N45: 90.85614658 | O45: 93.90195165 | P45: 100.084607 | Q45: 106.5912708 | R45: 113.438292 | S45: 120.6428389 | T45: 128.2229394 | U45: 136.1975246 | V45: 144.5864734 | W45: 153.4106604
B46: Closing Balance | C46: =C20 -> 1892.545565 | D46: =D44-D45 -> 1834.914054 | E46: =E44-E45 -> 1773.643949 | F46: 1708.576374 | G46: 1643.817403 | H46: 1574.932442 | I46: 1505.669728 | J46: 1431.888846 | K46: 1353.372464 | L46: 1273.276762 | M46: 1187.932705 | N46: 1097.076558 | O46: 1003.174606 | P46: 903.0899994 | Q46: 796.4987287 | R46: 683.0604367 | S46: 562.4175978 | T46: 434.1946584 | U46: 297.9971338 | V46: 153.4106604 | W46: 0
B48: Interest | D48: =D44*D17 -> 75.70182259 | E48: =E44*E17 -> 73.39656216 | F48: 70.94575798 | G48: 72.6144959 | H48: 69.86223964 | I48: 70.87195987 | J48: 67.75513777 | K48: 64.43499806 | L48: 64.28519202 | M48: 60.48064617 | N48: 56.42680347 | O48: 54.85382791 | P48: 50.15873032 | Q48: 45.15449997 | R48: 39.82493643 | S48: 34.15302183 | T48: 28.12087989 | U48: 21.70973292 | V48: 14.89985669 | W48: 7.670533019
B50: Cash Flow After Interest | D50: =D41-D48 -> 57.63151075 | E50: =E41-E48 -> 61.27010451 | F50: 65.06757536 | G50: 64.75897077 | H50: 68.88496169 | I50: 69.26271347 | J50: 73.78088231 | K50: 78.51638222 | L50: 80.09570206 | M50: 85.34405685 | N50: 90.85614658 | O50: 93.90195165 | P50: 100.084607 | Q50: 106.5912708 | R50: 113.438292 | S50: 120.6428389 | T50: 128.2229394 | U50: 136.1975246 | V50: 144.5864734 | W50: 153.4106604

Sheet Rael
C11: Discounting
C12: Period | D12: [yr] | G12: 0 | H12: =+G12+1 -> 1 | I12: =+H12+1 -> 2 | J12: =+I12+1 -> 3 | K12: =+J12+1 -> 4 | L12: =+K12+1 -> 5 | M12: 6
C13: One period discount rate | D13: [%] | H13: 0.05 | I13: 0.055 | J13: 0.06 | K13: 0.065 | L13: 0.07 | M13: 0.072
C14: Individual Discount Factor | D14: [#] | G14: 1 | H14: =1+H13 -> 1.05 | I14: 1.055 | J14: 1.06 | K14: 1.065 | L14: 1.07 | M14: 1.072
C15: Compounded Discounted Factor | D15: [#] | G15: =+G14 -> 1 | H15: =+G15*(1+H13) -> 1.05 | I15: 1.10775 | J15: 1.174215 | K15: 1.250538975 | L15: 1.338076703 | M15: 1.434418226
C16: CFADS | D16: [$m] | E16: =SUM(G16:M16) -> 36.1 | G16: 0 | H16: 6.5 | I16: 5.5 | J16: 5.7 | K16: 6.7 | L16: 6 | M16: 5.7
C17: Discounted CFADS (Long Formula) | D17: [$m] | E17: =SUM(G17:M17) -> 29.8252765 | H17: =H16/H14 -> 6.19047619 | I17: =I16/I14/H14 -> 4.965019183 | J17: =J16/J14/I14/H14 -> 4.85430692 | K17: =K16/K14/J14/I14/H14 -> 5.357689871 | L17: =L16/L14/K14/J14/I14/H14 -> 4.484047877 | M17: =M16/M14/L14/K14/J14/I14/H14 -> 3.973736458
C18: Discounted CFADS (Compounded Discount Factor) | D18: [$m] | E18: =SUM(G18:M18) -> 29.8252765 | H18: =H16/H15 -> 6.19047619 | I18: 4.965019183 | J18: 4.85430692 | K18: 5.357689871 | L18: 4.484047877 | M18: 3.973736458
B20: [i] | C20: Present Value Sumproduct | G20: =SUMPRODUCT(G16:$M$16/G15:$M$15) -> 29.8252765 | H20: =SUMPRODUCT(H16:$M$16/H15:$M$15) -> 29.8252765 | I20: =SUMPRODUCT(I16:$M$16/I15:$M$15) -> 23.63480031 | J20: =SUMPRODUCT(J16:$M$16/J15:$M$15) -> 18.66978113 | K20: =SUMPRODUCT(K16:$M$16/K15:$M$15) -> 13.81547421 | L20: =SUMPRODUCT(L16:$M$16/L15:$M$15) -> 8.457784334 | M20: =SUMPRODUCT(M16:$M$16/M15:$M$15) -> 3.973736458
B21: [ii] | C21: Present Value (Summation of Discounted CFADS) | G21: =SUM(G17:$M$17) -> 29.8252765 | H21: =SUM(H17:$M$17) -> 29.8252765 | I21: =SUM(I17:$M$17) -> 23.63480031 | J21: =SUM(J17:$M$17) -> 18.66978113 | K21: =SUM(K17:$M$17) -> 13.81547421 | L21: =SUM(L17:$M$17) -> 8.457784334 | M21: =SUM(M17:$M$17) -> 3.973736458
C22: Outstaning debt at Period End | D22: [$m] | G22: 20.1 | H22: 15.87 | I22: 13.44 | J22: 10.21 | K22: 7.03 | L22: 3.47
C23: LLCR | D23: [#] | G23: =+G21/G22 -> 1.483844602 | H23: 1.879349496 | I23: 1.75854169 | J23: 1.828577975 | K23: 1.965216814 | L23: 2.437401826
B25: [iii] | C25: Present Vaue of CFADS (formula as per Sheet) | D25: [$m] | G25: =(H16+H25)/H14 -> 29.8252765 | H25: =(I16+I25)/I14 -> 24.81654032 | I25: =(J16+J25)/J14 -> 20.68145004 | J25: =(K16+K25)/K14 -> 16.22233704 | K25: =(L16+L25)/L14 -> 10.57678895 | L25: =(M16+N17)/M14 -> 5.317164179
C26: Outstaning debt at Period End | D26: [$m] | G26: 20.1 | H26: 15.87 | I26: 13.44 | J26: 10.21 | K26: 7.03 | L26: 3.47
C27: LLCR | D27: [#] | G27: =+G25/G26 -> 1.483844602 | H27: 1.563739151 | I27: 1.538798366 | J27: 1.588867487 | K27: 1.504521899 | L27: 1.532323971
C29: Compound Interest Rate Table
G30: =G12 -> 0 | H30: 1 | I30: 2 | J30: 3 | K30: 4 | L30: 5 | M30: 6
F31: 0 | G31: =IF(G$30<=$F31,1,F31*(1+G$13)) -> 1 | H31: 1.05 | I31: 1.10775 | J31: 1.174215 | K31: 1.250538975 | L31: 1.338076703 | M31: 1.434418226
F32: 1 | G32: 1 | H32: 1 | I32: 1.055 | J32: 1.1183 | K32: 1.1909895 | L32: 1.274358765 | M32: 1.366112596
F33: 2 | G33: 1 | H33: 1 | I33: 1 | J33: 1.06 | K33: 1.1289 | L33: 1.207923 | M33: 1.294893456
F34: 3 | G34: 1 | H34: 1 | I34: 1 | J34: 1 | K34: 1.065 | L34: 1.13955 | M34: 1.2215976
F35: 4 | G35: 1 | H35: 1 | I35: 1 | J35: 1 | K35: 1 | L35: 1.07 | M35: 1.14704
F36: 5 | G36: 1 | H36: 1 | I36: 1 | J36: 1 | K36: 1 | L36: 1 | M36: 1.072
C38: Forward LLCR
C39: CFADS | G39: =G16 -> 0 | H39: 6.5 | I39: 5.5 | J39: 5.7 | K39: 6.7 | L39: 6 | M39: 5.7
C40: Discounted with Vintage Rate | G40: =SUMPRODUCT(G39:M39/G31:M31) -> 29.8252765 | H40: =SUMPRODUCT(H39:M39/H32:M32) -> 31.31654032 | I40: =SUMPRODUCT(I39:M39/I33:M33) -> 26.18145004 | J40: =SUMPRODUCT(J39:M39/J34:M34) -> 21.92233704 | K40: =SUMPRODUCT(K39:M39/K35:M35) -> 17.27678895 | L40: =SUMPRODUCT(L39:M39/L36:M36) -> 11.31716418
C42: Original | G42: =G21 -> 29.8252765 | H42: 29.8252765 | I42: 23.63480031 | J42: 18.66978113 | K42: 13.81547421 | L42: 8.457784334 | M42: 3.973736458
C43: Adjusted with Multiplying by Discount Factor | G43: =G42*G31 -> 29.8252765 | H43: 31.31654032 | I43: 26.18145004 | J43: 21.92233704 | K43: 17.27678895 | L43: 11.31716418 | M43: 5.7

Sheet No Construction Period
D2: 1 | E2: =D2+1 -> 2 | F2: =E2+1 -> 3 | G2: 4 | H2: 5 | I2: 6 | J2: 7 | K2: 8 | L2: 9 | M2: 10 | N2: 11 | O2: 12 | P2: 13 | Q2: 14 | R2: 15
C4: Cash Flow | D4: 230 | E4: =D4*0.95 -> 218.5 | F4: =E4*0.95 -> 207.575 | G4: 197.19625 | H4: 187.3364375 | I4: 177.9696156 | J4: 169.0711348 | K4: 160.6175781 | L4: 152.5866992 | M4: 144.9573642 | N4: 137.709496 | O4: 130.8240212 | P4: 124.2828202 | Q4: 118.0686792 | R4: 112.1652452
C6: Debt Balance | D6: =D7>0 -> TRUE | E6: =E7>0 -> TRUE | F6: TRUE | G6: TRUE | H6: TRUE | I6: TRUE | J6: TRUE | K6: TRUE | L6: TRUE | M6: TRUE | N6: FALSE | O6: FALSE | P6: FALSE | Q6: FALSE | R6: FALSE
C7: Opening | D7: 1000 | E7: =D9 -> 900 | F7: =E9 -> 800 | G7: 700 | H7: 600 | I7: 500 | J7: 400 | K7: 300 | L7: 200 | M7: 100 | N7: 0 | O7: 0 | P7: 0 | Q7: 0 | R7: 0
C8: Less: Repayment | D8: =100 -> 100 | E8: =100 -> 100 | F8: =100 -> 100 | G8: =100 -> 100 | H8: =100 -> 100 | I8: =100 -> 100 | J8: =100 -> 100 | K8: =100 -> 100 | L8: =100 -> 100 | M8: =100 -> 100
C9: Closing Balance | D9: =D7-D8 -> 900 | E9: =E7-E8 -> 800 | F9: =F7-F8 -> 700 | G9: 600 | H9: 500 | I9: 400 | J9: 300 | K9: 200 | L9: 100 | M9: 0 | N9: 0 | O9: 0 | P9: 0 | Q9: 0 | R9: 0
C11: Interest Rate | D11: 0.1 | E11: 0.1 | F11: 0.1 | G11: 0.08 | H11: 0.08 | I11: 0.08 | J11: 0.08 | K11: 0.08 | L11: 0.08 | M11: 0.08 | N11: 0.08 | O11: 0.08 | P11: 0.08 | Q11: 0.08 | R11: 0.08
C12: Interest Expense | D12: =D7*D11 -> 100 | E12: =E7*E11 -> 90 | F12: 80 | G12: 56 | H12: 48 | I12: 40 | J12: 32 | K12: 24 | L12: 16 | M12: 8 | N12: 0 | O12: 0 | P12: 0 | Q12: 0 | R12: 0
C14: Debt Service | D14: =D12+D8 -> 200 | E14: =E12+E8 -> 190 | F14: =F12+F8 -> 180 | G14: 156 | H14: 148 | I14: 140 | J14: 132 | K14: 124 | L14: 116 | M14: 108 | N14: 0 | O14: 0 | P14: 0 | Q14: 0 | R14: 0
C16: DSCRA | D16: =IF(D14,D4/D14,"") -> 1.15 | E16: 1.15 | F16: 1.153194444 | G16: 1.264078526 | H16: 1.26578674 | I16: 1.27121154 | J16: 1.280841931 | K16: 1.295303049 | L16: 1.315402579 | M16: 1.342197817
C18: IRR on Debt | D18: 0.09154683531 | E18: 0.0889644227 | F18: 0.08531252356 | G18: 0.08 | H18: 0.08 | I18: 0.08 | J18: 0.08 | K18: 0.08 | L18: 0.08 | M18: 0.08000000196 | N18: 0.1 | O18: 0.1 | P18: 0.1 | Q18: 0.1 | R18: 0.1
C19: NPV on Debt | D19: =NPV(D18,-D7,D14:R14) -> -6.639693021e-13 | E19: =NPV(E18,-E7,E14:S14) -> -2.805724136e-13 | F19: =NPV(F18,-F7,F14:T14) -> 2.618758082e-14 | G19: =NPV(G18,-G7,G14:U14) -> -9.210739167e-14 | H19: -3.947459643e-14 | I19: 2.236893798e-13 | J19: -3.947459643e-14 | K19: 7.894919286e-14 | L19: 3.947459643e-14 | M19: -1.680626598e-07 | N19: 0 | O19: 0 | P19: 0 | Q19: 0 | R19: 0
C21: PV Factor | D21: =1/(1+D18)^D2 -> 0.9161310973 | E21: 0.8432815867 | F21: 0.7822319611 | G21: 0.7350298528 | H21: 0.680583197 | I21: 0.6301696269 | J21: 0.5834903953 | K21: 0.5402688845 | L21: 0.5002489671 | M21: 0.4631934797 | N21: 0.3504938995 | O21: 0.3186308177 | P21: 0.2896643797 | Q21: 0.2633312543 | R21: 0.2393920494
C23: PV of Debt Service | D23: =NPV(D18,D14:R14*D6:R6) -> 1000 | E23: =NPV(E18,E14:S14*E6:S6) -> 900 | F23: =NPV(F18,F14:T14*F6:T6) -> 800 | G23: =NPV(G18,G14:U14*G6:U6) -> 700 | H23: =NPV(H18,H14:V14*H6:V6) -> 600 | I23: =NPV(I18,I14:W14*I6:W6) -> 500 | J23: =NPV(J18,J14:X14*J6:X6) -> 400 | K23: =NPV(K18,K14:Y14*K6:Y6) -> 300 | L23: =NPV(L18,L14:Z14*L6:Z6) -> 200 | M23: =NPV(M18,M14:AA14*M6:AA6) -> 99.99999982 | N23: =NPV(N11,N14:AA14*N6:AA6) -> 0 | O23: =NPV(O11,O14:AB14*O6:AB6) -> 0 | P23: =NPV(P11,P14:AC14*P6:AC6) -> 0 | Q23: =NPV(Q11,Q14:AD14*Q6:AD6) -> 0 | R23: =NPV(R11,R14:AE14*R6:AE6) -> 0
C24: PV of Cash Flow | D24: =NPV(D11,D4:Q4*D6:Q6) -> 1179.380186 | E24: =NPV(E11,E4:R4*E6:R6) -> 1067.318205 | F24: =NPV(F11,F4:S4*F6:S6) -> 955.5500252 | G24: =NPV(G11,G4:T4*G6:T6) -> 898.8006287 | H24: =NPV(H11,H4:U4*H6:U6) -> 773.508429 | I24: =NPV(I11,I4:V4*I6:V6) -> 648.0526658 | J24: =NPV(J11,J4:W4*J6:W6) -> 521.9272635 | K24: =NPV(K11,K4:X4*K6:X6) -> 394.6103097 | L24: =NPV(L11,L4:Y4*L6:Y6) -> 265.5615564 | M24: =NPV(M11,M4:Z4*M6:Z6) -> 134.2197817 | N24: =NPV(N11,N4:AA4*N6:AA6) -> 0 | O24: =NPV(O11,O4:AB4*O6:AB6) -> 0 | P24: =NPV(P11,P4:AC4*P6:AC6) -> 0 | Q24: =NPV(Q11,Q4:AD4*Q6:AD6) -> 0 | R24: =NPV(R11,R4:AE4*R6:AE6) -> 0
C25: LLCR | D25: =IF(D23,D24/D23,"") -> 1.179380186 | E25: =IF(E23,E24/E23,"") -> 1.185909116 | F25: 1.194437531 | G25: 1.284000898 | H25: 1.289180715 | I25: 1.296105332 | J25: 1.304818159 | K25: 1.315367699 | L25: 1.327807782 | M25: 1.342197819
